bitfinex-derivatives/quotes_BTCF0:USTF0_20251108
["timestamp","ask_amount","ask_price","bid_price","bid_amount"]
[1762575566158,0.56842235,102670.0,102660.0,0.12723765]
[1762575568158,0.5164431,102670.0,102660.0,0.12723765]
[1762575568362,0.5164431,102670.0,102660.0,0.3082723]
[1762575570456,0.5164431,102670.0,102660.0,0.25259299]
[1762575570859,0.56842235,102670.0,102660.0,0.25259299]
[1762575573765,0.56842235,102670.0,102660.0,0.15512039]
[1762575574661,0.56842235,102670.0,102660.0,0.0436756]
[1762575576870,0.56842235,102670.0,102660.0,0.1411482]
[1762575577166,0.56842235,102670.0,102660.0,0.25259299]
[1762575577859,0.56842235,102670.0,102660.0,0.26574299]
[1762575578264,0.56842235,102670.0,102660.0,0.25259299]
[1762575580169,0.56842235,102670.0,102660.0,0.13393039]
[1762575580467,0.56842235,102670.0,102660.0,0.0466656]
[1762575581268,0.56842235,102670.0,102660.0,0.0240056]
[1762575581470,0.56842235,102670.0,102660.0,0.0011456]
[1762575581670,0.5164431,102670.0,102660.0,0.0011456]
[1762575583573,0.58899837,102670.0,102660.0,0.0986182]
[1762575584070,0.5194431,102670.0,102660.0,0.1214982]
[1762575584570,0.58899837,102670.0,102660.0,0.1214982]
[1762575585965,0.58899837,102670.0,102660.0,0.0240256]
[1762575586967,0.58899837,102670.0,102660.0,0.0986182]
[1762575587268,0.58899837,102670.0,102660.0,0.1214982]
[1762575587471,0.58899837,102670.0,102660.0,0.1438882]
[1762575588272,0.58899837,102670.0,102660.0,0.25533299]
[1762575588966,0.47836527,102670.0,102660.0,0.26896299]
[1762575589174,0.07255527,102670.0,102660.0,0.26896299]
[1762575589468,0.0451,102670.0,102660.0,0.29409987]
[1762575589868,0.0451,102670.0,102660.0,0.65489987]
[1762575590063,0.0451,102670.0,102660.0,0.68118489]
[1762575590466,0.0451,102670.0,102660.0,0.65489987]
[1762575591768,0.003,102670.0,102660.0,0.65489987]
[1762575591967,0.51057253,102690.0,102680.0,0.0974536]
[1762575592165,0.55267253,102690.0,102680.0,0.26115839]
[1762575592566,0.45522823,102690.0,102680.0,0.26115839]
[1762575592872,0.45515748,102690.0,102680.0,0.26115839]
[1762575593072,0.55260168,102690.0,102680.0,0.26115839]
[1762575593368,0.55660168,102690.0,102680.0,0.26115839]
[1762575593967,0.56060168,102690.0,102680.0,0.26215839]
[1762575594871,0.57354168,102690.0,102680.0,0.26215839]
[1762575595066,0.57354168,102690.0,102680.0,0.25516839]
[1762575595771,0.57354168,102690.0,102680.0,0.15771479]
[1762575595970,0.57354168,102690.0,102680.0,0.25516839]
[1762575596170,0.57354168,102690.0,102680.0,0.15771479]
[1762575596771,0.57354168,102690.0,102680.0,0.25516839]
[1762575597272,0.57354168,102690.0,102680.0,0.15771479]
[1762575598172,0.57354168,102690.0,102680.0,0.02388]
[1762575598474,0.57354168,102690.0,102680.0,0.001]
[1762575599669,0.57354168,102690.0,102680.0,0.0984536]
[1762575600571,0.57354168,102690.0,102680.0,0.001]
[1762575601370,0.1530531,102670.0,102660.0,0.0001456]
[1762575601676,0.56585997,102670.0,102660.0,0.0001456]
[1762575602666,0.56585997,102670.0,102660.0,0.0976182]
[1762575602871,0.56685997,102670.0,102660.0,0.0011456]
[1762575603468,0.56785997,102670.0,102660.0,0.0011456]
[1762575604386,0.94620837,102670.0,102660.0,0.0011456]
[1762575607076,0.8766531,102670.0,102660.0,0.0011456]
[1762575607472,0.92865108,102670.0,102660.0,0.0011456]
[1762575607668,0.8766531,102670.0,102660.0,0.0011456]
[1762575608568,0.92864856,102670.0,102660.0,0.0011456]
[1762575610173,0.8766531,102670.0,102660.0,0.0011456]
[1762575610379,0.92865822,102670.0,102660.0,0.0011456]
[1762575610774,0.8766531,102670.0,102660.0,0.0011456]
[1762575611176,0.92866268,102670.0,102660.0,0.0241956]
[1762575611373,0.92866268,102670.0,102660.0,0.0011456]
[1762575611776,0.92866268,102670.0,102660.0,0.0241956]
[1762575612275,0.92866268,102670.0,102660.0,0.0011456]
[1762575613480,0.92866268,102670.0,102660.0,0.0454556]
[1762575613774,0.92866268,102670.0,102660.0,0.25437279]
[1762575614078,0.92866268,102670.0,102660.0,0.26720279]
[1762575614577,0.92866268,102670.0,102660.0,0.25437279]
[1762575615372,0.83119958,102670.0,102660.0,0.26720279]
[1762575615578,0.82112958,102670.0,102660.0,0.26720279]
[1762575615974,0.40832,102670.0,102660.0,0.26720279]
[1762575616174,0.04752,102670.0,102660.0,0.26720279]
[1762575617172,0.1449829,102670.0,102660.0,0.26720279]
[1762575617478,0.1581629,102670.0,102660.0,0.26720279]
[1762575617675,0.5189629,102670.0,102660.0,0.25437279]
[1762575620479,0.5189629,102670.0,102660.0,0.15690039]
[1762575620677,0.5189629,102670.0,102660.0,0.0011456]
[1762575621476,0.57097248,102670.0,102660.0,0.0011456]
[1762575621784,0.57097248,102670.0,102660.0,0.098618]
[1762575621978,0.57097248,102670.0,102660.0,0.142928]
[1762575622377,0.57097248,102670.0,102660.0,0.25437279]
[1762575624779,0.57097248,102670.0,102660.0,0.26720279]
[1762575625578,0.57097248,102670.0,102660.0,0.25437279]
[1762575625774,0.57097248,102670.0,102660.0,0.13564039]
[1762575626085,0.57097248,102670.0,102660.0,0.0011456]
[1762575626286,0.5189629,102670.0,102660.0,0.0011456]
[1762575626978,0.58851817,102670.0,102660.0,0.0011456]
[1762575627780,0.58851817,102670.0,102660.0,0.098618]
[1762575628082,0.58851817,102670.0,102660.0,0.25524279]
[1762575628289,0.58851817,102670.0,102660.0,0.23311279]
[1762575628478,0.58851817,102670.0,102660.0,0.25524279]
[1762575628787,0.58851817,102670.0,102660.0,0.143798]
[1762575629687,0.58851817,102670.0,102660.0,0.0241956]
[1762575630390,0.58851817,102670.0,102660.0,0.0011456]
[1762575631675,0.58851817,102670.0,102660.0,0.098618]
[1762575631881,0.58851817,102670.0,102660.0,0.143148]
[1762575632486,0.58851817,102670.0,102660.0,0.2267367]
[1762575633189,0.58851817,102670.0,102660.0,0.2046067]
[1762575633788,0.58851817,102670.0,102660.0,0.2267367]
[1762575634185,0.58851817,102670.0,102660.0,0.0847343]
[1762575634690,0.58851817,102670.0,102660.0,0.1822067]
[1762575635988,0.58851817,102670.0,102660.0,0.0847343]
[1762575637086,0.58851817,102670.0,102660.0,0.0011456]
[1762575637087,0.67210687,102670.0,102660.0,0.0011456]
[1762575640795,0.58851817,102670.0,102660.0,0.098618]
[1762575640985,0.67210687,102670.0,102660.0,0.0847343]
[1762575641495,0.58851817,102670.0,102660.0,0.2267367]
[1762575643995,0.58851817,102670.0,102660.0,0.1292643]
[1762575644195,0.58851817,102670.0,102660.0,0.0847343]
[1762575645097,0.67210687,102670.0,102660.0,0.0847343]
[1762575647598,0.58851817,102670.0,102660.0,0.0847343]
[1762575647797,0.67210687,102670.0,102660.0,0.0847343]
[1762575648189,0.58851817,102670.0,102660.0,0.0847343]
[1762575648697,0.58851817,102670.0,102660.0,0.2265967]
[1762575648899,0.58851817,102670.0,102660.0,0.1291243]
[1762575649198,0.58851817,102670.0,102660.0,0.0847343]
[1762575650497,0.58851817,102670.0,102660.0,0.0011456]
[1762575650699,0.58851817,102670.0,102660.0,0.0847343]
[1762575652494,0.67210687,102670.0,102660.0,0.0847343]
[1762575654294,0.58851817,102670.0,102660.0,0.0847343]
[1762575655601,0.67210687,102670.0,102660.0,0.0011456]
[1762575655796,0.6025516,102670.0,102660.0,0.0011456]
[1762575656801,0.6025516,102670.0,102660.0,0.0847343]
[1762575657101,0.5189629,102670.0,102660.0,0.1063643]
[1762575657502,0.5169629,102670.0,102660.0,0.1053643]
[1762575657702,0.5239629,102670.0,102660.0,0.1053643]
[1762575660105,0.5239629,102670.0,102660.0,0.0837343]
[1762575660301,0.5239629,102670.0,102660.0,0.1069443]
[1762575660500,0.5239629,102670.0,102660.0,0.1298543]
[1762575660699,0.5239629,102670.0,102660.0,0.2273267]
[1762575661814,0.5239629,102670.0,102660.0,0.3248254]
[1762575662009,0.46554501,102670.0,102660.0,0.34976582]
[1762575662407,0.46554711,102670.0,102660.0,0.34976398]
[1762575663112,0.47917711,102670.0,102660.0,0.34976398]
[1762575663307,0.46554711,102670.0,102660.0,0.34976398]
[1762575663515,0.46554711,102670.0,102660.0,0.3248254]
[1762575664713,0.57664011,102670.0,102660.0,0.3248254]
[1762575665107,0.57664011,102670.0,102660.0,0.3109154]
[1762575665308,0.57664011,102670.0,102660.0,0.3245154]
[1762575665513,0.46554711,102670.0,102660.0,0.3245154]
[1762575665914,0.47917711,102670.0,102660.0,0.3245154]
[1762575667019,0.46554711,102670.0,102660.0,0.3245154]
[1762575667712,0.56301011,102670.0,102660.0,0.3245154]
[1762575667913,0.57664011,102670.0,102660.0,0.3245154]
[1762575668116,0.47917711,102670.0,102660.0,0.3245154]
[1762575668324,0.56301011,102670.0,102660.0,0.3245154]
[1762575668724,0.21584011,102670.0,102660.0,0.3245154]
[1762575669323,0.57664011,102670.0,102660.0,0.3245154]
[1762575671424,0.21584011,102670.0,102660.0,0.3245154]
[1762575671824,0.57664011,102670.0,102660.0,0.3245154]
[1762575672425,0.21584011,102670.0,102660.0,0.3245154]
[1762575672728,0.57664011,102670.0,102660.0,0.3245154]
[1762575673424,0.57664011,102670.0,102660.0,0.3109154]
[1762575675430,0.05774,102660.0,102650.0,0.11148127]
[1762575675720,0.51610893,102660.0,102650.0,0.0835887]
[1762575676024,0.55087681,102660.0,102650.0,0.0835887]
[1762575676417,0.55087681,102660.0,102650.0,0.1810704]
[1762575677123,0.55287681,102660.0,102650.0,0.1810704]
[1762575677521,0.55487681,102660.0,102650.0,0.1810704]
[1762575678620,0.45740441,102660.0,102650.0,0.1810704]
[1762575678923,0.09660441,102660.0,102650.0,0.2646591]
[1762575679825,0.19407681,102660.0,102650.0,0.2646591]
[1762575680623,0.19207681,102660.0,102650.0,0.2646591]
[1762575680930,0.09560441,102660.0,102650.0,0.5081791]
[1762575681116,0.09560441,102660.0,102650.0,0.2646591]
[1762575681322,0.09660441,102660.0,102650.0,0.2646591]
[1762575681517,0.09460441,102660.0,102650.0,0.2656591]
[1762575681723,0.09560441,102660.0,102650.0,0.2656591]
[1762575681932,0.09360441,102660.0,102650.0,0.2656591]
[1762575682121,0.19207681,102660.0,102650.0,0.2656591]
[1762575683128,0.19207681,102660.0,102650.0,0.1820704]
[1762575683329,0.15730893,102660.0,102650.0,0.1820704]
[1762575684632,0.51810893,102660.0,102650.0,0.1820704]
[1762575685732,0.57033604,102660.0,102650.0,0.0845887]
[1762575687234,0.57033604,102660.0,102650.0,0.1820707]
[1762575687436,0.57033614,102660.0,102650.0,0.1820707]
[1762575687630,0.57033614,102660.0,102650.0,0.2656594]
[1762575688032,0.20953614,102660.0,102650.0,0.2656594]
[1762575688233,0.57033614,102660.0,102650.0,0.1820707]
[1762575690929,0.57033614,102660.0,102650.0,0.0845887]
[1762575694332,0.57033614,102660.0,102650.0,0.11246857]
[1762575695029,0.56081151,102660.0,102650.0,0.11246857]
[1762575695938,0.56081151,102660.0,102650.0,0.001]
[1762575696631,0.56081151,102660.0,102650.0,0.11246857]
[1762575697240,0.56081151,102660.0,102650.0,0.20995057]
[1762575698039,0.56081151,102660.0,102650.0,0.001]
[1762575698240,0.56081151,102660.0,102650.0,0.098482]
[1762575699142,0.56081151,102660.0,102650.0,0.001]
[1762575699540,0.56081151,102660.0,102650.0,0.11246857]
[1762575701031,0.56081151,102660.0,102650.0,0.13729955]
[1762575701341,0.56081151,102660.0,102650.0,0.02583098]
[1762575703043,0.56081151,102660.0,102650.0,0.12331288]
[1762575703744,0.56081151,102660.0,102650.0,0.12641288]
[1762575704141,0.5085844,102660.0,102650.0,0.12486288]
[1762575704336,0.5085844,102660.0,102650.0,0.23478145]
[1762575705043,0.5085844,102660.0,102650.0,0.13729955]
[1762575705644,0.5085844,102660.0,102650.0,0.23478145]
[1762575706136,0.5085844,102660.0,102650.0,0.23788145]
[1762575706947,0.4111119,102660.0,102650.0,0.23788145]
[1762575707147,0.5085844,102660.0,102650.0,0.23788145]
[1762575709644,0.0503119,102660.0,102650.0,0.23788145]
[1762575710346,0.1477844,102660.0,102650.0,0.23788145]
[1762575711847,0.1477844,102660.0,102650.0,0.23633145]
[1762575712548,0.1477844,102660.0,102650.0,0.23788145]
[1762575713251,0.23480158,102660.0,102650.0,0.21305047]
[1762575714952,0.20001151,102660.0,102650.0,0.21305047]
[1762575716354,0.10253901,102660.0,102650.0,0.21305047]
[1762575716549,0.19998316,102660.0,102650.0,0.21305047]
[1762575716854,0.10251066,102660.0,102650.0,0.21305047]
[1762575717044,0.19998316,102660.0,102650.0,0.21305047]
[1762575717239,0.07706876,102660.0,102650.0,0.21305047]
[1762575717440,0.03265138,102660.0,102650.0,1.42648047]
[1762575717649,0.0577456,102670.0,102660.0,0.1407425]
[1762575717850,0.0577456,102670.0,102660.0,0.27850813]
[1762575718049,0.0577456,102670.0,102660.0,0.52202813]
[1762575718258,0.0443856,102670.0,102660.0,0.50794107]
[1762575718454,0.0230156,102670.0,102660.0,0.50794107]
[1762575718653,0.0001456,102670.0,102660.0,0.50794107]
[1762575718848,0.0001456,102670.0,102660.0,0.50894107]
[1762575719157,0.0031456,102670.0,102660.0,0.98702107]
[1762575719351,0.05787,102690.0,102680.0,0.1407235]
[1762575719554,0.05787,102690.0,102680.0,0.61299207]
[1762575721059,0.02287,102690.0,102680.0,0.62120207]
[1762575721246,0.02287,102690.0,102680.0,0.38213]
[1762575721247,0.0576,102690.0,102680.0,0.38213]
[1762575721445,0.0576,102690.0,102650.0,0.11914465]
[1762575721446,0.097463,102670.0,102650.0,0.0974768]
[1762575721652,0.4184,102660.0,102650.0,0.1407468]
[1762575721851,0.4184,102660.0,102650.0,0.0974819]
[1762575722161,0.0576,102650.0,102640.0,0.61302637]
[1762575724562,0.0586,102650.0,102640.0,0.61902637]
[1762575724858,0.06831729,102650.0,102640.0,0.61902637]
[1762575726349,0.06831729,102650.0,102640.0,0.1254278]
[1762575726554,0.044912,102650.0,102640.0,0.23689637]
[1762575726754,0.01071729,102650.0,102640.0,0.63271637]
[1762575726965,0.01071729,102650.0,102640.0,0.74418494]
[1762575726966,0.001,102650.0,102640.0,0.74418494]
[1762575727559,0.01085938,102650.0,102640.0,0.74418494]
[1762575728062,0.05509938,102650.0,102640.0,0.63271637]
[1762575728262,0.06845938,102650.0,102640.0,0.63271637]
[1762575729268,0.06845938,102650.0,102640.0,0.61902637]
[1762575729965,0.06845938,102650.0,102640.0,0.63123637]
[1762575730459,0.06845938,102650.0,102640.0,0.61902637]
[1762575730866,0.05509938,102650.0,102640.0,0.27043637]
[1762575731164,0.06845938,102650.0,102640.0,0.27043637]
[1762575731566,0.16594128,102650.0,102640.0,0.25822637]
[1762575732158,0.05509938,102650.0,102640.0,0.27191637]
[1762575732669,0.06845938,102650.0,102640.0,0.27191637]
[1762575733266,0.16594128,102650.0,102640.0,0.27191637]
[1762575733462,0.3608,102680.0,102670.0,0.05548]
[1762575733761,0.12708001,102690.0,102680.0,0.1489335]
[1762575733966,0.0576,102690.0,102680.0,0.1489335]
[1762575734266,0.06732214,102690.0,102680.0,0.26040207]
[1762575735560,0.05396214,102690.0,102680.0,0.26040207]
[1762575736465,0.06832214,102690.0,102680.0,0.26040207]
[1762575737163,0.05496214,102690.0,102680.0,0.1489335]
[1762575737366,0.06832214,102690.0,102680.0,0.26040207]
[1762575738261,0.06832214,102690.0,102680.0,0.02194]
[1762575738262,0.16576634,102690.0,102680.0,0.02194]
[1762575738568,0.0576,102680.0,102670.0,0.1408754]
[1762575738963,0.4184,102680.0,102670.0,0.1408754]
[1762575739761,0.4184,102680.0,102670.0,0.1418754]
[1762575740464,0.4184,102680.0,102670.0,0.1408754]
[1762575740669,0.47143932,102680.0,102670.0,0.1418754]
[1762575741264,0.4194,102680.0,102670.0,0.1408754]
[1762575741567,0.47143932,102680.0,102670.0,0.1408754]
[1762575742271,0.56889302,102680.0,102670.0,0.1408754]
[1762575742461,0.56889302,102680.0,102670.0,0.0001456]
[1762575742668,0.5168537,102680.0,102670.0,0.0001456]
[1762575742866,0.58633371,102680.0,102670.0,0.0001456]
[1762575743774,0.58633371,102680.0,102670.0,0.0976087]
[1762575745163,0.58633371,102680.0,102670.0,0.0001456]
[1762575746464,0.58633371,102680.0,102670.0,0.0976087]
[1762575746663,0.58633371,102680.0,102670.0,0.1195487]
[1762575746863,0.58633371,102680.0,102670.0,0.1420087]
[1762575747063,0.58633371,102680.0,102670.0,0.0445456]
[1762575747270,0.58633371,102680.0,102670.0,0.0220856]
[1762575747467,0.58633371,102680.0,102670.0,0.0001456]
[1762575747771,0.58633371,102680.0,102670.0,0.0976087]
[1762575747969,0.58633371,102680.0,102670.0,0.1433987]
[1762575748169,0.58633371,102680.0,102670.0,0.0001456]
[1762575751370,0.58633371,102680.0,102670.0,0.0976087]
[1762575752368,0.58633371,102680.0,102670.0,0.1433987]
[1762575753772,0.09729259,102680.0,102670.0,0.1464387]
[1762575754067,0.09729259,102680.0,102670.0,0.25790727]
[1762575754068,0.55486612,102680.0,102670.0,0.25790727]
[1762575754272,0.45741242,102680.0,102670.0,0.25790727]
[1762575754474,0.09661242,102680.0,102670.0,0.25790727]
[1762575754671,0.05305259,102680.0,102670.0,0.25790727]
[1762575754876,0.001,102680.0,102670.0,0.25790727]
[1762575755472,0.04586,102680.0,102670.0,0.25790727]
[1762575755670,0.1433137,102680.0,102670.0,0.25790727]
[1762575756479,0.1433137,102680.0,102670.0,0.22999997]
[1762575756679,0.1433137,102680.0,102670.0,0.1464387]
[1762575756879,0.1433137,102680.0,102670.0,0.22999997]
[1762575757179,0.5041137,102680.0,102670.0,0.22999997]
[1762575757570,0.04586,102680.0,102670.0,0.1464387]
[1762575757769,0.04586,102680.0,102670.0,0.22999997]
[1762575761080,0.1433137,102680.0,102670.0,0.22999997]
[1762575762080,0.1433137,102680.0,102670.0,0.0489756]
[1762575762081,0.62934945,102680.0,102670.0,0.0489756]
[1762575762276,0.62934945,102680.0,102670.0,0.0459356]
[1762575762478,0.62934945,102680.0,102670.0,0.0234756]
[1762575762667,0.57729686,102680.0,102670.0,0.0234756]
[1762575762867,0.54580141,102680.0,102670.0,0.1426087]
[1762575763075,0.57729686,102680.0,102670.0,0.0001456]
[1762575763281,0.64677687,102680.0,102670.0,0.0001456]
[1762575766181,0.57729686,102680.0,102670.0,0.0001456]
[1762575767174,0.62937718,102680.0,102670.0,0.0001456]
[1762575767379,0.71293845,102680.0,102670.0,0.0001456]
[1762575768378,0.66085813,102680.0,102670.0,0.0001456]
[1762575773789,0.30005813,102680.0,102670.0,0.0001456]
[1762575773992,1.02165813,102680.0,102670.0,0.0001456]
[1762575776192,1.09113814,102680.0,102670.0,0.0001456]
[1762575776394,1.10843089,102680.0,102670.0,0.0001456]
[1762575779086,1.10843089,102680.0,102670.0,0.0228956]
[1762575779291,1.10843089,102680.0,102670.0,0.0001456]
[1762575781494,1.11043089,102680.0,102670.0,0.0001456]
[1762575781895,0.1428224,102660.0,102650.0,0.12870127]
[1762575782194,0.65190451,102660.0,102650.0,0.12870127]
[1762575782592,0.1428319,102650.0,102640.0,0.12000127]
[1762575782894,0.5904063,102650.0,102640.0,0.14239127]
[1762575783697,0.5904063,102650.0,102640.0,0.23988267]
[1762575784687,0.5914063,102650.0,102640.0,0.24288267]
[1762575785196,0.5914063,102650.0,102640.0,0.24488267]
[1762575785394,0.5904063,102650.0,102640.0,0.32644394]
[1762575786298,0.5904063,102650.0,102640.0,0.32444394]
[1762575786498,0.5904063,102650.0,102640.0,0.32544394]
[1762575787695,0.03470976,102650.0,102640.0,1.28624394]
[1762575787896,0.15502166,102650.0,102640.0,1.28624394]
[1762575788102,0.15502166,102650.0,102640.0,0.14439127]
[1762575788103,0.5904063,102650.0,102640.0,0.14439127]
[1762575788298,0.5904063,102650.0,102640.0,0.24188267]
[1762575788804,0.5904063,102650.0,102640.0,0.32544394]
[1762575789612,0.5904063,102650.0,102640.0,0.1583214]
[1762575789805,0.5904063,102650.0,102640.0,0.14439127]
[1762575790601,0.5904063,102650.0,102640.0,0.24188267]
[1762575790996,0.5904063,102650.0,102640.0,0.14439127]
[1762575792505,0.5904063,102650.0,102640.0,0.24188267]
[1762575793206,0.53834166,102650.0,102640.0,0.14439127]
[1762575793400,0.5904063,102650.0,102640.0,0.14439127]
[1762575794202,0.5904063,102650.0,102640.0,0.24188267]
[1762575795109,0.5904063,102650.0,102640.0,0.14439127]
[1762575795610,0.56204654,102650.0,102640.0,0.13070127]
[1762575796511,0.59682032,102650.0,102640.0,0.13070127]
[1762575797207,0.68038159,102650.0,102640.0,0.13070127]
[1762575797505,0.66297096,102650.0,102640.0,0.04714]
[1762575798107,0.66297096,102650.0,102640.0,0.13070127]
[1762575798108,0.59354317,102650.0,102640.0,0.13070127]
[1762575798308,0.64570763,102650.0,102640.0,0.04714]
[1762575798610,0.59354317,102650.0,102640.0,0.13070127]
[1762575799304,0.59354317,102650.0,102640.0,0.04714]
[1762575799902,0.58719317,102650.0,102640.0,0.06063]
[1762575800105,0.58719317,102650.0,102640.0,0.24168267]
[1762575800106,0.5036319,102650.0,102640.0,0.24168267]
[1762575800509,0.55579575,102650.0,102640.0,0.24168267]
[1762575800811,0.55579575,102650.0,102640.0,0.14419127]
[1762575801414,0.64570702,102650.0,102640.0,0.13070127]
[1762575801814,0.64570702,102650.0,102640.0,0.04714]
[1762575802208,0.64570702,102650.0,102640.0,0.02475]
[1762575802501,0.64570702,102650.0,102640.0,0.002]
[1762575802813,0.66297096,102650.0,102640.0,0.002]
[1762575803309,0.59354317,102650.0,102640.0,0.002]
[1762575805220,0.64569566,102650.0,102640.0,0.002]
[1762575805518,0.68031593,102650.0,102640.0,0.002]
[1762575806311,0.1408714,102640.0,102630.0,0.0001456]
[1762575806511,0.64838662,102640.0,102630.0,0.0001456]
[1762575808312,0.73194789,102640.0,102630.0,0.0001456]
[1762575808508,0.64838662,102640.0,102630.0,0.0011456]
[1762575808708,0.64838662,102640.0,102630.0,0.0021456]
[1762575808909,0.64838662,102640.0,102630.0,0.0466956]
[1762575809106,0.64838662,102640.0,102630.0,0.13025687]
[1762575809420,0.64838662,102640.0,102630.0,0.0456956]
[1762575809614,0.64938662,102640.0,102630.0,0.0456956]
[1762575809820,0.65038662,102640.0,102630.0,0.0218456]
[1762575810215,0.56682535,102640.0,102630.0,0.0446956]
[1762575810421,0.65038662,102640.0,102630.0,0.0446956]
[1762575810616,0.65038662,102640.0,102630.0,0.0218456]
[1762575810921,0.65038662,102640.0,102630.0,0.0446956]
[1762575811513,0.65038662,102640.0,102630.0,0.0218456]
[1762575811713,0.65038662,102640.0,102630.0,0.0001456]
[1762575812124,0.56682535,102640.0,102630.0,0.0001456]
[1762575812317,0.65038662,102640.0,102630.0,0.0001456]
[1762575813115,0.65038662,102640.0,102630.0,0.0218456]
[1762575813116,0.56682535,102640.0,102630.0,0.0218456]
[1762575813316,0.65038662,102640.0,102630.0,0.0446956]
[1762575815222,0.59825267,102640.0,102630.0,0.0446956]
[1762575815823,0.65033891,102640.0,102630.0,0.0446956]
[1762575816325,0.56677764,102640.0,102630.0,0.0446956]
[1762575818531,0.56677764,102640.0,102630.0,0.0001456]
[1762575819028,0.5146914,102640.0,102630.0,0.0001456]
[1762575819230,0.56677322,102640.0,102630.0,0.0218456]
[1762575819424,0.56677322,102640.0,102630.0,0.0446956]
[1762575819637,0.56677322,102640.0,102630.0,0.0218456]
[1762575819822,0.56677322,102640.0,102630.0,0.0001456]
[1762575821531,0.56677322,102640.0,102630.0,0.0218456]
[1762575822225,0.56677322,102640.0,102630.0,0.0001456]
[1762575823331,0.67830422,102640.0,102630.0,0.0001456]
[1762575823830,0.56677322,102640.0,102630.0,0.0001456]
[1762575824733,0.69573433,102640.0,102630.0,0.0001456]
[1762575826031,0.6262224,102640.0,102630.0,0.0001456]
[1762575826229,0.1419004,102620.0,102610.0,0.169901]
[1762575826532,0.6022155,102620.0,102610.0,0.05837]
[1762575826734,0.6022155,102620.0,102610.0,0.2674209]
[1762575826933,0.5895655,102620.0,102610.0,0.2674209]
[1762575827137,0.55481946,102620.0,102610.0,0.2674209]
[1762575827335,0.55481946,102620.0,102610.0,0.2694209]
[1762575827535,0.55481946,102620.0,102610.0,0.2714209]
[1762575829637,0.55481946,102620.0,102610.0,0.173901]
[1762575830436,0.55481946,102620.0,102610.0,0.06237]
[1762575830929,0.55481946,102620.0,102610.0,0.1598899]
[1762575831734,0.55481946,102620.0,102610.0,0.2714209]
[1762575831935,0.55481946,102620.0,102610.0,0.173901]
[1762575833232,0.55481946,102620.0,102610.0,0.2714209]
[1762575833442,0.55481946,102620.0,102610.0,0.06237]
[1762575833937,0.57219296,102620.0,102610.0,0.06237]
[1762575834538,0.5027004,102620.0,102610.0,0.173901]
[1762575835130,0.5153504,102620.0,102610.0,0.173901]
[1762575835336,0.5153504,102620.0,102610.0,0.160411]
[1762575835533,0.5153504,102620.0,102610.0,0.04888]
[1762575835735,0.5153504,102620.0,102610.0,0.04688]
[1762575836630,0.5153504,102620.0,102610.0,0.1581598]
[1762575836834,0.5027004,102620.0,102610.0,0.1581598]
[1762575839040,0.5027004,102620.0,102610.0,0.2696908]
[1762575840140,0.5027004,102620.0,102610.0,0.172171]
[1762575840534,0.5027004,102620.0,102610.0,0.2696908]
[1762575840739,0.5027004,102620.0,102610.0,0.1581598]
[1762575841638,0.5027004,102620.0,102610.0,0.06064]
[1762575841849,0.5153204,102620.0,102610.0,0.06064]
[1762575842442,0.5027004,102620.0,102610.0,0.1581598]
[1762575842831,0.5047004,102620.0,102610.0,0.05864]
[1762575843038,0.5067004,102620.0,102610.0,0.05864]
[1762575843639,0.57619296,102620.0,102610.0,0.05864]
[1762575843839,0.57619296,102620.0,102610.0,0.1561598]
[1762575844342,0.47868256,102620.0,102610.0,0.2676908]
[1762575844842,0.57619286,102620.0,102610.0,0.05864]
[1762575845344,0.57619286,102620.0,102610.0,0.2676908]
[1762575850540,0.21539286,102620.0,102610.0,0.2676908]
[1762575851448,0.57619286,102620.0,102610.0,0.2676908]
[1762575852353,0.1085493,102600.0,102590.0,8e-08]
[1762575852651,0.04584,102570.0,102560.0,0.170641]
[1762575852849,0.08065012,102570.0,102560.0,0.170641]
[1762575853250,0.08076406,102570.0,102560.0,0.05911]
[1762575853446,0.08076406,102570.0,102560.0,0.170641]
[1762575853644,0.00011394,102570.0,102560.0,0.2682084]
[1762575854252,0.04595394,102570.0,102560.0,0.2702084]
[1762575854445,0.04595394,102570.0,102560.0,1.2310084]
[1762575854855,0.05671589,102570.0,102560.0,0.6340084]
[1762575855155,0.05671589,102570.0,102560.0,1.2340084]
[1762575855349,0.05671589,102570.0,102560.0,1.136441]
[1762575855563,0.05671589,102570.0,102560.0,0.775641]
[1762575855748,0.05671589,102570.0,102560.0,0.6340084]
[1762575856060,0.05671589,102570.0,102560.0,0.536441]
[1762575856249,0.05671589,102570.0,102560.0,0.6340084]
[1762575856551,0.05671589,102570.0,102560.0,1.2340084]
[1762575856957,0.01087589,102570.0,102560.0,1.136441]
[1762575857259,0.05671589,102570.0,102560.0,0.175641]
[1762575857945,0.01087589,102570.0,102560.0,0.6340084]
[1762575858464,0.05671589,102570.0,102560.0,0.6340084]
[1762575862063,0.03363589,102570.0,102560.0,0.6340084]
[1762575862253,0.00096834,102570.0,102560.0,1.54811573]
[1762575862453,0.0001456,102580.0,102570.0,0.1566679]
[1762575862650,0.0001456,102580.0,102570.0,0.6289989]
[1762575862859,0.0001456,102580.0,102570.0,0.8727189]
[1762575863051,0.0001456,102580.0,102570.0,0.6289989]
[1762575863458,0.0001456,102580.0,102570.0,0.8727189]
[1762575863656,0.02367911,102580.0,102570.0,0.8737189]
[1762575864050,0.02367911,102580.0,102570.0,0.6319989]
[1762575864460,0.02367911,102580.0,102570.0,0.8757189]
[1762575864658,0.03352753,102580.0,102570.0,0.6319989]
[1762575864857,0.03352753,102580.0,102570.0,0.8757189]
[1762575866262,0.03352753,102580.0,102570.0,0.6319989]
[1762575866562,0.03352753,102580.0,102570.0,0.8757189]
[1762575868168,0.03352753,102580.0,102570.0,0.6319989]
[1762575868463,0.03352753,102580.0,102570.0,0.8757189]
[1762575870264,0.05628753,102580.0,102570.0,0.6319989]
[1762575870652,0.03352753,102580.0,102570.0,0.6319989]
[1762575870856,0.0870253,102590.0,102580.0,0.1436084]
[1762575871160,0.08803916,102590.0,102580.0,0.6159394]
[1762575871464,0.10141916,102590.0,102580.0,0.6159394]
[1762575872166,0.10241916,102590.0,102580.0,0.6159394]
[1762575872665,0.19995806,102590.0,102580.0,0.157591]
[1762575872864,0.19995806,102590.0,102580.0,0.2551394]
[1762575873068,0.20095806,102590.0,102580.0,0.2551394]
[1762575875267,0.10341916,102590.0,102580.0,0.2551394]
[1762575875965,0.20095806,102590.0,102580.0,0.2551394]
[1762575876359,0.10341916,102590.0,102580.0,0.2551394]
[1762575878364,0.09003916,102590.0,102580.0,0.67178976]
[1762575879671,0.09862434,102590.0,102580.0,0.99920044]
[1762575879866,0.04640916,102590.0,102580.0,0.99920044]
[1762575880064,0.002,102590.0,102580.0,0.99920044]
[1762575880664,0.03681012,102590.0,102580.0,0.75548044]
[1762575880871,0.03681012,102590.0,102580.0,0.99920044]
[1762575881067,0.03681012,102590.0,102580.0,0.75548044]
[1762575881068,0.001,102590.0,102580.0,0.75548044]
[1762575881364,0.03581012,102590.0,102580.0,1.00020044]
[1762575881667,0.001,102590.0,102580.0,1.00020044]
[1762575882268,0.03481012,102590.0,102580.0,1.00120044]